Workbook

Sheet Flowsheet

Sheet ZOE
B2: OFFGAS | V2: Performances of the chillers | AW2: Calculation help
AW3: Mass flow in kg/h | AX3: Mass flow in Nm³/h
B4: Total Inlet Mass Flow | I4: 83.94 | O4: Nm³/h | W4: EER4 | Z4: DORIN - Propane | AW4: 500 | AX4: =AW4*InletT*8.314/InletP/(( (I7)*0.01604+ (I8)*0.04401+ (I9)*0.031998+ (I10)*0.0280134+ (I11)*0.018015 )) -> 262.321466
I5: =I4*( ( (I7)*0.01604 + (I8)*0.04401 + (I9)*0.031998 + (I10)*0.0280134 + (I11)*0.018015 ) ) * InletP/(8.314*InletT) -> 159.9945313 | O5: kg /h | Z5: a_EER4 | AE5: b_EER4 | AJ5: c_EER4 | AO5: d_EER4
Z6: =INDEX('Chiller performances'!D$3:D$9, MATCH(Z4, 'Chiller performances'!C$3:C$9, 0)) -> 0 | AE6: =INDEX('Chiller performances'!E$3:E$9, MATCH(Z4, 'Chiller performances'!C$3:C$9, 0)) -> 0.001611543 | AJ6: =INDEX('Chiller performances'!F$3:F$9, MATCH(Z4, 'Chiller performances'!C$3:C$9, 0)) -> -1.055630204 | AO6: =INDEX('Chiller performances'!G$3:G$9, MATCH(Z4, 'Chiller performances'!C$3:C$9, 0)) -> 174.8289653
B7: CH4 inlet | I7: 0.01 | O7: % mol. | Z7: =aEER4Value*AmbiantT^3 + bEER4Value*AmbiantT^2+cEER4Value*AmbiantT+dEER4value -> 2.071074008 | AQ7: @ | AR7: =AmbiantTinC -> 46
B8: CO2 inlet | I8: =1-SUM(I7,I9:I11) -> 0.9829 | O8: % mol.
B9: O2 inlet | I9: 0.005 | O9: % mol. | W9: EER30 | Z9: DORIN - Propane
B10: N2 inlet | I10: 0.0001 | O10: % mol. | Z10: a_EER30 | AE10: b_EER30 | AJ10: c_EER30 | AO10: d_EER30
B11: Water inlet | I11: 0.002 | O11: % mol. | Z11: =INDEX('Chiller performances'!D$10:D$16, MATCH(Z9, 'Chiller performances'!C$10:C$16, 0)) -> 0 | AE11: =INDEX('Chiller performances'!E$10:E$16, MATCH(Z9, 'Chiller performances'!C$10:C$16, 0)) -> 0.0002066553 | AJ11: =INDEX('Chiller performances'!F$10:F$16, MATCH(Z9, 'Chiller performances'!C$10:C$16, 0)) -> -0.1588274972 | AO11: =INDEX('Chiller performances'!G$10:G$16, MATCH(Z9, 'Chiller performances'!C$10:C$16, 0)) -> 30.28840437
Z12: =aEER30Value*AmbiantT^3 + bEER30Value*AmbiantT^2+cEER30Value*AmbiantT+dEER30Value -> 0.6478401809 | AQ12: @ | AR12: =AmbiantTinC -> 46
B13: Inlet Pressure | I13: =70 -> 70 | O13: mbarg
I14: =100000*I13/1000+101325 -> 108325 | O14: Pa | V14: Options
B15: Inlet Temperature | I15: 25 | O15: °C
I16: =I15+273.15 -> 298.15 | O16: K | X16: CO2 Chiller | AC16: No | AI16: Regen PSA | AN16: Yes
B18: CO2 Quality | X18: City location | AG18: Dubai (UAE)
F19: Insert 'x' on the selected quality
J20: ↓
C21: INDUSTRIAL | O21: CO2 > 99% v/v
C22: FOOD QUALITY | O22: CO2 > 99,9% v/v
C23: FOOD QUALITY AND USE | J23: x | O23: CO2 > 99,9% v/v
J24: =Quality -> 0.9999 | W24: Modifiable values
W25: Computed values

Sheet Computation
R3: To be modified in Computation
C6: Progress report
C7: Computation completed
F9: Process Pressure | H9: =minPrange -> 21 | I9: =maxPrange -> 43
H10: Power consumption | I10: Power consumption
A11: Modifiable values | F11: Auxiliary 1 | H11: 3500 | I11: 3500
A12: Computed values | F12: Auxiliary 2 | H12: 2000 | I12: 2000
F13: Positive chiller Thermal energy demand | H13: 4449.279674 | I13: 12584.37894
A14: Working conditions | F14: Negative chiller Thermal energy demand | H14: 13116.83907 | I14: 2330.23997
F15: Compressor - Power | H15: 21014.79132 | I15: 23175.61531
A16: Ambient Temperature | B16: 46 | C16: =B16+273.15 -> 319.15 | F16: CO2 Chiller - Power | H16: 0.4537177143 | I16: 0.4537177143
F17: PSA Heater - Power | H17: 660.2924742 | I17: 633.1833779
A18: Liquid CO2 production | F18: CSP | H18: =(Aux_1LPValue+Aux_2LPValue+PosChillerLP/EER_4+NegChillerLP/EER_30 + CompLP+CO2ChillerLP+PSAHeaterLP)/(C22)/1000 -> 0.3470987448 | I18: =(Aux_1HPValue+Aux_2HPValue+PosChillerHP/EER_4+NegChillerHP/EER_30+CompHP+CO2ChillerHP+PSAHeaterHP)/1000/C22 -> 0.2729578929
A20: Liquid CO2 Temperature | C20: =COFE_GetStreamItemValueShort(A20)-273.15 -> -21.35357309 | F20: Heat saving Comp. Stage 1 | H20: 4161.96738 | I20: 4146.893181
A21: Liquid CO2 Pressure | C21: =(COFE_GetStreamItemValueShort(A21)-101325)/100000 -> 17.72605 | F21: Heat saving Comp. Stage 2 | H21: 4421.208682 | I21: 4267.461739
A22: Liquid CO2 Mass Flow | C22: =COFE_GetStreamItemValueShort(A22)*3600 -> 142.8148713 | F22: Heat saving Comp. Stage 3 | H22: 0 | I22: 4372.913326
F23: Total Heat saving | H23: =SUM(H20:H22) -> 8583.176062 | I23: =SUM(I20:I22) -> 12787.26825
E26: OPEX - Consumption & usage | K26: Cost of different processes over | N26: 15
M27: =minPrange -> 21 | N27: =maxPrange -> 43
E28: Mean CSP | G28: =AVERAGE(MeteoData!K1:K8785) -> 0.2717887168 | H28: =AVERAGE(MeteoData!L1:L8785) -> 0.2474012891 | I28: =-(G28-H28)/G28 -> -0.08972936035 | K28: CAPEX
B29: Parametric study range | E29: Total electric power | G29: =G28*$C$22 -> 38.81547063 | H29: =H28*$C$22 -> 35.33258327 | I29: =-(G29-H29)/G29 -> -0.08972936035 | K29: Compressor cost | M29: 0 | N29: 0 | O29: =IF(ISERROR((M29-N29)/M29),0,-(M29-N29)/M29) -> 0
A30: Temperature range | B30: =ROUND(MIN(MeteoData!B2:J8785),0) -> -8 | C30: =ROUND(MAX(MeteoData!B2:J8785),0) -> 46 | E30: Heat saving (60°C-150°C) | G30: =AVERAGE(MeteoData!M1:M8785)/$C$22/1000 -> 0.06010001606 | H30: =AVERAGE(MeteoData!N1:N8785)/$C$22/1000 -> 0.08953737187 | I30: =-(G30-H30)/G30 -> 0.4898061222 | K30: Positive chiller cost | M30: 0 | N30: 0 | O30: 0
A31: Pressure range | B31: 21 | C31: 43 | E31: Total heat saving (60°C-150°C) | G31: =G30*$C$22 -> 8.583176062 | H31: =H30*$C$22 -> 12.78726824 | I31: =-(G31-H31)/G31 -> 0.4898061222 | K31: Negative chiller cost | M31: 0 | N31: 0 | O31: 0
K32: PSA cost | M32: 0 | N32: 0 | O32: 0
K33: Additional cost | M33: 0 | N33: 0 | O33: 0
K34: Total CAPEX | M34: =SUM(M29:M32) -> 0 | N34: =SUM(N29:N32) -> 0 | O34: 0
K36: Electricity purchasing price | M36: 0.15
K37: Biomethane sale price | M37: 0.1
K38: OPEX - Cost analysis
K39: Electricity purchasing | M39: =MeteoData!K8787 -> 51143.2641 | N39: =MeteoData!L8787 -> 46554.21172 | O39: =IF(ISERROR((M39-N39)/M39),0,-(M39-N39)/M39) -> -0.08972936035
K40: Energy savings | M40: =-MeteoData!M8787 -> -9062.831052 | N40: =-MeteoData!N8787 -> -13501.86119 | O40: =IF(ISERROR((M40-N40)/M40),0,-(M40-N40)/M40) -> 0.4898061222
K41: Total OPEX | M41: =M39+M40 -> 42080.43304 | N41: =N39+N40 -> 33052.35054 | O41: =IF(ISERROR((M41-N41)/M41),0,-(M41-N41)/M41) -> -0.2145434791
K43: Maintenance
K44: Compressor maintenance | M44: 0 | N44: 0 | O44: =IF(ISERROR((M44-N44)/M44),0,-(M44-N44)/M44) -> 0
K45: Positive chiller maintenance | M45: 0 | N45: 0 | O45: 0
K46: Negative chiller maintenance | M46: 0 | N46: 0 | O46: 0
K47: PSA maintenance | M47: 0 | N47: 0 | O47: 0
K48: Additional maintenance | M48: 0 | N48: 0 | O48: 0
K49: Total maintenance | M49: =SUM(M44:M47) -> 0 | N49: =SUM(N44:N47) -> 0 | O49: 0
K51: ="Total over " & N26 & " years" -> Total over 15 years | M51: =TEXT(ROUND(M34+M41*$N$26+M49*$N$26,0),"# ##0") & " €/" & $N$26 & " years" -> 631 206 €/15 years | N51: =TEXT(ROUND(N34+N41*$N$26+N49*$N$26,0),"# ##0") & " €/" & $N$26 & " years" -> 495 785 €/15 years | O51: =-(SUBSTITUTE(LEFT(M51,FIND("€",M51)-2)," ","")-SUBSTITUTE(LEFT(N51,FIND("€",N51)-2)," ",""))/SUBSTITUTE(LEFT(M51,FIND("€",M51)-2)," ","") -> -0.2145432711
K52: Most interesting process | M52: =IF(TRIM(LEFT(M51, FIND(" €", M51) - 1)) *1>TRIM(LEFT(N51, FIND(" €", N51) - 1)) *1,"HP process","LP process") -> HP process
K53: ="Differential over " & N26 & " years" -> Differential over 15 years | M53: =ABS(TRIM(LEFT(M51, FIND(" €", M51) - 1)) *1 - TRIM(LEFT(N51, FIND(" €", N51) - 1)) *1) -> 135421

Sheet Mass Balance
B2: LP process
A3: PFD stream | B3: 1 | C3: =B3+1 -> 2 | D3: =C3+1 -> 3 | E3: 4 | F3: 5 | G3: 6 | H3: 7 | I3: 8 | J3: 9 | K3: 10 | L3: 11 | O3: Ambient temperature | P3: =AmbiantTinC -> 46 | R3: To be modified in Computation
A4: Stream name | B4: 00-07 | C4: FQ_03b | D4: FQ_08 | E4: FQ_12 | F4: FQ_21 | G4: FQ_27 | H4: FQ_NCG-01 | I4: FQ_29 | J4: FQ_30b | K4: FQ_32b | L4: FQ_Boil Off-01 | O4: Inlet Biogas Flowrate | P4: =GasFlow -> 159.9945313
A5: Pressure | B5: 0.07 | C5: 0.02 | D5: 20.4 | E5: 20.15 | F5: 20.9 | G5: 20.3 | H5: 18.00005 | I5: 18.02605 | J5: 18.02605 | K5: 17.72605 | L5: 17.72605 | M5: barg | O5: CO2 Liquefaction Yield | P5: =COFE_GetStreamItemValueShort("FQ_CO2 Yield") -> 0.9000014815
A6: Temperature | B6: 25 | C6: 37.6229895 | D6: 4 | E6: 25 | F6: 32 | G6: -26 | H6: -26.09 | I6: -20.84564239 | J6: -26 | K6: -21.35357306 | L6: -21.35357306 | M6: °C
A7: Flow rate | B7: 159.9945313 | C7: 177.7886956 | D7: 177.7886956 | E7: 159.8633023 | F7: 159.8775789 | G7: 159.8775789 | H7: 17.04858483 | I7: 142.8289941 | J7: 142.8289941 | K7: 142.8147175 | L7: 0.01427661889 | M7: kg/h
A8: %CH4 | B8: 0.01000000011 | C8: 0.009997682808 | D8: 0.009997682808 | E8: 0.01001986321 | F8: 0.01001904241 | G8: 0.01001904241 | H8: 0.08767954359 | I8: 7.271264276e-05 | J8: 7.271264276e-05 | K8: 7.26438429e-05 | L8: 0.0007606424922 | M8: %
A9: %CO2 | B9: 0.9828999998 | C9: 0.9826719986 | D9: 0.9826719986 | E9: 0.9848500068 | F9: 0.9848512768 | G9: 0.9848512768 | H9: 0.8673515148 | I9: 0.9999 | J9: 0.9999 | K9: 0.9999000723 | L9: 0.999176945 | M9: %
A10: %O2 | B10: 0.005000000057 | C10: 0.004998841382 | D10: 0.004998841382 | E10: 0.005009931384 | F10: 0.005009492773 | G10: 0.005009492773 | H10: 0.04408626792 | I10: 4.75437733e-06 | J10: 4.75437733e-06 | K10: 4.748644495e-06 | L10: 6.207699488e-05 | M10: % | P10: LP | Q10: HP
A11: %N2 | B11: 0.0001000000012 | C11: 9.997682825e-05 | D11: 9.997682825e-05 | E11: 0.0001001986337 | F11: 0.0001001897517 | G11: 0.0001001897517 | H11: 0.000882465784 | I11: 1.409187955e-10 | J11: 1.409187955e-10 | K11: 1.405993726e-10 | L11: 3.334828819e-09 | M11: % | O11: CSP | P11: =CSP_LP -> 0.3470987448 | Q11: =CSP_HP -> 0.2729578929
A12: %H2O | B12: 0.002000000023 | C12: 0.002231500364 | D12: 0.002231500364 | E12: 1.999995467e-05 | F12: 1.999821118e-05 | G12: 1.999821118e-05 | H12: 2.079498388e-07 | I12: 2.253283899e-05 | J12: 2.253283899e-05 | K12: 2.253505928e-05 | L12: 3.321581399e-07 | M12: % | O12: Positive chiller Thermal energy demand | P12: =PosChillerLP -> 4449.279674 | Q12: =PosChillerHP -> 12584.37894
O13: Negative chiller Thermal energy demand | P13: =NegChillerLP -> 13116.83907 | Q13: =NegChillerHP -> 2330.23997
B14: HP process | O14: Compressor - Power | P14: =CompLP -> 21014.79132 | Q14: =CompHP -> 23175.61531
A15: PFD stream | B15: 1 | C15: =B15+1 -> 2 | D15: 3 | E15: 4 | F15: 5 | G15: 6 | H15: 7 | I15: 8 | J15: 9 | K15: 10 | L15: 11 | O15: CO2 Chiller - Power | P15: =CO2ChillerLP -> 0.4537177143 | Q15: =CO2ChillerHP -> 0.4537177143
A16: Stream name | B16: 00-07 | C16: FQ_03b | D16: FQ_08 | E16: FQ_12 | F16: FQ_21 | G16: FQ_27 | H16: FQ_NCG-01 | I16: FQ_29 | J16: FQ_30b | K16: FQ_32b | L16: FQ_Boil Off-01 | O16: PSA Heater - Power | P16: =PSAHeaterLP -> 660.2924742 | Q16: =PSAHeaterHP -> 633.1833779
A17: Pressure | B17: 0.07 | C17: 0.02 | D17: 10.81342337 | E17: 10.56342337 | F17: 42.9 | G17: 42.3 | H17: 18.00005 | I17: 18.02605 | J17: 18.02605 | K17: 17.72605 | L17: 17.72605 | M17: barg
A18: Temperature | B18: 25 | C18: 37.89354254 | D18: 4 | E18: 25 | F18: 32 | G18: -26 | H18: -26.09 | I18: -20.84564242 | J18: -26 | K18: -21.35357309 | L18: -21.35357309 | M18: °C | O18: Heat saving Comp. Stage 1 | P18: =HR_1_LP -> 4161.96738 | Q18: =HR_1_HP -> 4146.893181
A19: Flow rate | B19: 159.9945313 | C19: 177.8053877 | D19: 177.8053877 | E19: 159.8634563 | F19: 159.8777329 | G19: 159.8777329 | H19: 17.04858495 | I19: 142.829148 | J19: 142.829148 | K19: 142.8148713 | L19: 0.01427663427 | M19: kg/h | O19: Heat saving Comp. Stage 2 | P19: =HR_2_LP -> 4421.208682 | Q19: =HR_2_HP -> 4267.461739
A20: %CH4 | B20: 0.01000000011 | C20: 0.009995412471 | D20: 0.009995412471 | E20: 0.01001985371 | F20: 0.01001903292 | G20: 0.01001903292 | H20: 0.08767954262 | I20: 7.271270525e-05 | J20: 7.271270525e-05 | K20: 7.264390533e-05 | L20: 0.0007606431457 | M20: % | O20: Heat saving Comp. Stage 3 | P20: =HR_3_LP -> 0 | Q20: =HR_3_HP -> 4372.913326
A21: %CO2 | B21: 0.9828999998 | C21: 0.9824489418 | D21: 0.9824489418 | E21: 0.9848500211 | F21: 0.9848512911 | G21: 0.9848512911 | H21: 0.8673515148 | I21: 0.9999 | J21: 0.9999 | K21: 0.9999000723 | L21: 0.9991769443 | M21: % | O21: Total Heat saving | P21: =SUM(P18:P20) -> 8583.176062 | Q21: =SUM(Q18:Q20) -> 12787.26825
A22: %O2 | B22: 0.005000000057 | C22: 0.004997706224 | D22: 0.004997706224 | E22: 0.005009926737 | F22: 0.005009488127 | G22: 0.005009488127 | H22: 0.04408626882 | I22: 4.754382188e-06 | J22: 4.754382188e-06 | K22: 4.748649347e-06 | L22: 6.207705829e-05 | M22: %
A23: %N2 | B23: 0.0001000000012 | C23: 9.99541248e-05 | D23: 9.99541248e-05 | E23: 0.000100198538 | F23: 0.0001001896561 | G23: 0.0001001896561 | H23: 0.0008824657791 | I23: 1.409189671e-10 | J23: 1.409189671e-10 | K23: 1.405995437e-10 | L23: 3.334832878e-09 | M23: %
A24: %H2O | B24: 0.002000000023 | C24: 0.002457985399 | D24: 0.002457985399 | E24: 1.999989729e-05 | F24: 1.999815382e-05 | G24: 1.999815382e-05 | H24: 2.079492216e-07 | I24: 2.253277164e-05 | J24: 2.253277164e-05 | K24: 2.253499192e-05 | L24: 3.321571467e-07 | M24: %

Sheet SimulationResults (hidden)
A1: Température [°C] | B1: Rendement LP | C1: HR1 LP | D1: HR2 LP | E1: HR3 LP | F1: Rendement HP | G1: HR1 HP | H1: HR2 HP | I1: HR3 HP
A2: -8 | B2: 0.2206587972 | C2: 4161.96738 | D2: 4421.208682 | E2: 0 | F2: 0.2198378331 | G2: 4146.570754 | H2: 3804.080699 | I2: 4372.914948
A3: -7 | B3: 0.2111857854 | C3: 4161.84678 | D3: 4417.342724 | E3: 0 | F3: 0.2026017066 | G3: 4146.726876 | H3: 3868.680872 | I3: 4372.914716
A4: -6 | B4: 0.2121638007 | C4: 4161.961751 | D4: 4417.758792 | E4: 0 | F4: 0.2032191509 | G4: 4146.893278 | H4: 3933.363271 | I4: 4372.914468
A5: -5 | B5: 0.2129626007 | C5: 4165.784253 | D5: 4418.20192 | E5: 0 | F5: 0.2038623518 | G5: 4146.893248 | H5: 3998.132156 | I5: 4372.914116
A6: -4 | B6: 0.214017888 | C6: 4166.191141 | D6: 4418.675427 | E6: 0 | F6: 0.2045869717 | G6: 4146.893216 | H6: 4062.991951 | I6: 4372.913743
A7: -3 | B7: 0.2150984135 | C7: 4166.624874 | D7: 4419.180181 | E7: 0 | F7: 0.2060606519 | G7: 4146.893183 | H7: 4127.950392 | I7: 4372.913347
A8: -2 | B8: 0.2162052294 | C8: 4167.086972 | D8: 4419.717953 | E8: 0 | F8: 0.2081371778 | G8: 4146.89318 | H8: 4192.212734 | I8: 4372.913326
A9: -1 | B9: 0.2177242283 | C9: 4161.967467 | D9: 4420.292004 | E9: 0 | F9: 0.213551787 | G9: 4146.89318 | H9: 4256.463178 | I9: 4372.913327
A10: 0 | B10: 0.2189252496 | C10: 4161.967409 | D10: 4420.901602 | E10: 0 | F10: 0.2161880069 | G10: 4146.893181 | H10: 4267.461739 | I10: 4372.913326
A11: 1 | B11: 0.2201498512 | C11: 4161.96738 | D11: 4421.208682 | E11: 0 | F11: 0.216901805 | G11: 4146.89318 | H11: 4267.461738 | I11: 4372.913327
A12: 2 | B12: 0.2213903715 | C12: 4161.96738 | D12: 4421.208682 | E12: 0 | F12: 0.2176343294 | G12: 4146.893181 | H12: 4267.461739 | I12: 4372.913326
A13: 3 | B13: 0.2225875853 | C13: 4161.96738 | D13: 4421.208682 | E13: 0 | F13: 0.2183854984 | G13: 4146.893181 | H13: 4267.461739 | I13: 4372.913326
A14: 4 | B14: 0.2238174279 | C14: 4161.96738 | D14: 4421.208682 | E14: 0 | F14: 0.2191570704 | G14: 4146.893181 | H14: 4267.461739 | I14: 4372.913326
A15: 5 | B15: 0.2250815825 | C15: 4161.96738 | D15: 4421.208682 | E15: 0 | F15: 0.2199500358 | G15: 4146.893181 | H15: 4267.461739 | I15: 4372.913326
A16: 6 | B16: 0.2263816034 | C16: 4161.96738 | D16: 4421.208682 | E16: 0 | F16: 0.2207646004 | G16: 4146.893181 | H16: 4267.461739 | I16: 4372.913326
A17: 7 | B17: 0.2276420118 | C17: 4161.96738 | D17: 4421.208682 | E17: 0 | F17: 0.2216028587 | G17: 4146.893181 | H17: 4267.461739 | I17: 4372.913326
A18: 8 | B18: 0.2290209081 | C18: 4161.96738 | D18: 4421.208682 | E18: 0 | F18: 0.2224650728 | G18: 4146.89318 | H18: 4267.461738 | I18: 4372.913327
A19: 9 | B19: 0.2304412539 | C19: 4161.96738 | D19: 4421.208682 | E19: 0 | F19: 0.2233525667 | G19: 4146.893181 | H19: 4267.461739 | I19: 4372.913326
A20: 10 | B20: 0.2319052959 | C20: 4161.96738 | D20: 4421.208682 | E20: 0 | F20: 0.2242661585 | G20: 4146.893181 | H20: 4267.461739 | I20: 4372.913326
A21: 11 | B21: 0.2334161236 | C21: 4161.96738 | D21: 4421.208682 | E21: 0 | F21: 0.2252085909 | G21: 4146.893181 | H21: 4267.461739 | I21: 4372.913326
A22: 12 | B22: 0.2349740364 | C22: 4161.96738 | D22: 4421.208682 | E22: 0 | F22: 0.226178662 | G22: 4146.893181 | H22: 4267.461739 | I22: 4372.913326
A23: 13 | B23: 0.2365820397 | C23: 4161.96738 | D23: 4421.208682 | E23: 0 | F23: 0.2271785876 | G23: 4146.893181 | H23: 4267.461739 | I23: 4372.913326
A24: 14 | B24: 0.2382430708 | C24: 4161.96738 | D24: 4421.208682 | E24: 0 | F24: 0.2282095557 | G24: 4146.893181 | H24: 4267.461739 | I24: 4372.913326
A25: 15 | B25: 0.2399598042 | C25: 4161.96738 | D25: 4421.208682 | E25: 0 | F25: 0.2292697921 | G25: 4146.893181 | H25: 4267.461739 | I25: 4372.913326
A26: 16 | B26: 0.2417760715 | C26: 4161.96738 | D26: 4421.208682 | E26: 0 | F26: 0.2303536269 | G26: 4146.893181 | H26: 4267.461739 | I26: 4372.913326
A27: 17 | B27: 0.2435711267 | C27: 4161.96738 | D27: 4421.208682 | E27: 0 | F27: 0.2314707348 | G27: 4146.893181 | H27: 4267.461739 | I27: 4372.913326
A28: 18 | B28: 0.2454720187 | C28: 4161.96738 | D28: 4421.208682 | E28: 0 | F28: 0.2326221893 | G28: 4146.893181 | H28: 4267.461739 | I28: 4372.913326
A29: 19 | B29: 0.247440811 | C29: 4161.96738 | D29: 4421.208682 | E29: 0 | F29: 0.2338090622 | G29: 4146.893181 | H29: 4267.461739 | I29: 4372.913326
A30: 20 | B30: 0.2494810635 | C30: 4161.96738 | D30: 4421.208682 | E30: 0 | F30: 0.235032398 | G30: 4146.89318 | H30: 4267.461738 | I30: 4372.913327
A31: 21 | B31: 0.2515915481 | C31: 4161.96738 | D31: 4421.208682 | E31: 0 | F31: 0.2362934655 | G31: 4146.89318 | H31: 4267.461738 | I31: 4372.913327
A32: 22 | B32: 0.2537736354 | C32: 4161.96738 | D32: 4421.208682 | E32: 0 | F32: 0.2375926824 | G32: 4146.893181 | H32: 4267.461739 | I32: 4372.913326
A33: 23 | B33: 0.2560377241 | C33: 4161.96738 | D33: 4421.208682 | E33: 0 | F33: 0.2389309581 | G33: 4146.893181 | H33: 4267.461739 | I33: 4372.913326
A34: 24 | B34: 0.258388633 | C34: 4161.96738 | D34: 4421.208682 | E34: 0 | F34: 0.2403096262 | G34: 4146.893181 | H34: 4267.461739 | I34: 4372.913326
A35: 25 | B35: 0.2608306365 | C35: 4161.96738 | D35: 4421.208682 | E35: 0 | F35: 0.241729143 | G35: 4146.893181 | H35: 4267.461739 | I35: 4372.913326
A36: 26 | B36: 0.2633688623 | C36: 4161.96738 | D36: 4421.208682 | E36: 0 | F36: 0.2431901196 | G36: 4146.893181 | H36: 4267.461739 | I36: 4372.913326
A37: 27 | B37: 0.2660084857 | C37: 4161.96738 | D37: 4421.208682 | E37: 0 | F37: 0.2446930483 | G37: 4146.89318 | H37: 4267.461731 | I37: 4372.913326
A38: 28 | B38: 0.2687555864 | C38: 4161.96738 | D38: 4421.208682 | E38: 0 | F38: 0.2462385172 | G38: 4146.893181 | H38: 4267.461739 | I38: 4372.913326
A39: 29 | B39: 0.2716158103 | C39: 4161.96738 | D39: 4421.208682 | E39: 0 | F39: 0.2478259197 | G39: 4146.893181 | H39: 4267.461739 | I39: 4372.913326
A40: 30 | B40: 0.274595774 | C40: 4161.96738 | D40: 4421.208682 | E40: 0 | F40: 0.2494562915 | G40: 4146.893181 | H40: 4267.461739 | I40: 4372.913326
A41: 31 | B41: 0.2777022831 | C41: 4161.96738 | D41: 4421.208682 | E41: 0 | F41: 0.2511283992 | G41: 4146.893181 | H41: 4267.461739 | I41: 4372.913326
A42: 32 | B42: 0.2809430822 | C42: 4161.96738 | D42: 4421.208682 | E42: 0 | F42: 0.2528426159 | G42: 4146.893181 | H42: 4267.461739 | I42: 4372.913326
A43: 33 | B43: 0.2843262113 | C43: 4161.96738 | D43: 4421.208682 | E43: 0 | F43: 0.2545983053 | G43: 4146.893181 | H43: 4267.461739 | I43: 4372.913326
A44: 34 | B44: 0.2878600666 | C44: 4161.96738 | D44: 4421.208682 | E44: 0 | F44: 0.256393799 | G44: 4146.893181 | H44: 4267.461739 | I44: 4372.913326
A45: 35 | B45: 0.291554049 | C45: 4161.96738 | D45: 4421.208682 | E45: 0 | F45: 0.2582287924 | G45: 4146.893181 | H45: 4267.461739 | I45: 4372.913326
A46: 36 | B46: 0.2954186646 | C46: 4161.96738 | D46: 4421.208682 | E46: 0 | F46: 0.2601016839 | G46: 4146.89318 | H46: 4267.461738 | I46: 4372.913327
A47: 37 | B47: 0.2994650351 | C47: 4161.96738 | D47: 4421.208682 | E47: 0 | F47: 0.2620111797 | G47: 4146.893181 | H47: 4267.461739 | I47: 4372.913326
A48: 38 | B48: 0.3037050858 | C48: 4161.96738 | D48: 4421.208682 | E48: 0 | F48: 0.2639547456 | G48: 4146.893181 | H48: 4267.461739 | I48: 4372.913326
A49: 39 | B49: 0.3081522558 | C49: 4161.96738 | D49: 4421.208682 | E49: 0 | F49: 0.2659312383 | G49: 4146.893181 | H49: 4267.461739 | I49: 4372.913326
A50: 40 | B50: 0.3128215947 | C50: 4161.96738 | D50: 4421.208682 | E50: 0 | F50: 0.2679386406 | G50: 4146.893181 | H50: 4267.461739 | I50: 4372.913326
A51: 41 | B51: 0.3177295345 | C51: 4161.96738 | D51: 4421.208682 | E51: 0 | F51: 0.269974337 | G51: 4146.893181 | H51: 4267.461739 | I51: 4372.913326
A52: 42 | B52: 0.3228940725 | C52: 4161.96738 | D52: 4421.208682 | E52: 0 | F52: 0.2720362767 | G52: 4146.893181 | H52: 4267.461739 | I52: 4372.913326
A53: 43 | B53: 0.3283358099 | C53: 4161.96738 | D53: 4421.208682 | E53: 0 | F53: 0.2741230765 | G53: 4146.893173 | H53: 4267.461731 | I53: 4372.913326
A54: 44 | B54: 0.3340777468 | C54: 4161.96738 | D54: 4421.208682 | E54: 0 | F54: 0.2762330715 | G54: 4146.893181 | H54: 4267.461739 | I54: 4372.913326
A55: 45 | B55: 0.3401457253 | C55: 4161.96738 | D55: 4421.208682 | E55: 0 | F55: 0.2783642254 | G55: 4146.893181 | H55: 4267.461739 | I55: 4372.913326
A56: 46 | B56: 0.3465694682 | C56: 4161.96738 | D56: 4421.208682 | E56: 0 | F56: 0.2805166384 | G56: 4146.893181 | H56: 4267.461739 | I56: 4372.913326

Sheet MeteoData
A1: Date | B1: Brest (France) | C1: Dubai (UAE) | D1: Oensingen (Swiss) | K1: Cost LP [kWh/kg] | L1: Cost HP [kWh/kg] | M1: Heat recovery LP [W] | N1: Heat recovery HP [W]
A2: 2024-01-01 | B2: 10.1 | C2: 21.8 | D2: 2.4 | K2: 0.253337218 | L2: 0.237332839 | M2: 8583.176062 | N2: 12787.26824 | O2: - More weather data can be found on the 1st link below. To do so, the GPS coordinates of the location are needed and can be found in the 2nd link (fig. 2) --> 1st coordinate is Longitude, 2nd coordinate is Latitude - The coordinates and date must be completed on the weather data website (fig. 2) --> 1st coordinate is Latitude, 2nd coordinate is Longitude - The temperature box must be checked - The data can be downloaded as a .csv or .xlsx and copy/pasted in one of the columns on the left (from B to J) and the name of the location written in 1st line
A3: 2024-01-01T01:00:00 | B3: 10 | C3: 22.6 | D3: 2.2 | K3: 0.2551320886 | L3: 0.2383956478 | M3: 8583.176062 | N3: 12787.26825
A4: 2024-01-01T02:00:00 | B4: 10.1 | C4: 21.9 | D4: 2.6 | K4: 0.2535554267 | L4: 0.2374627607 | M4: 8583.176062 | N4: 12787.26824
A5: 2024-01-01T03:00:00 | B5: 9.6 | C5: 20.7 | D5: 3 | K5: 0.2509584027 | L5: 0.2359151453 | M5: 8583.176062 | N5: 12787.26824
A6: 2024-01-01T04:00:00 | B6: 8.9 | C6: 22.1 | D6: 2.8 | K6: 0.2540000443 | L6: 0.23772651 | M6: 8583.176062 | N6: 12787.26825
A7: 2024-01-01T05:00:00 | B7: 9 | C7: 23.4 | D7: 2.5 | K7: 0.2569780876 | L7: 0.2394824254 | M7: 8583.176062 | N7: 12787.26824
A8: 2024-01-01T06:00:00 | B8: 9 | C8: 24.8 | D8: 2.4 | K8: 0.2603422358 | L8: 0.2414452397 | M8: 8583.176062 | N8: 12787.26824
A9: 2024-01-01T07:00:00 | B9: 9 | C9: 25.7 | D9: 2.4 | K9: 0.2626073945 | L9: 0.2427518266 | M9: 8583.176062 | N9: 12787.26824
A10: 2024-01-01T08:00:00 | B10: 9.1 | C10: 26.2 | D10: 2.8 | K10: 0.263896787 | L10: 0.2434907053 | M10: 8583.176062 | N10: 12787.26824 | O10: https://open-meteo.com/en/docs/historical-weather-api
A11: 2024-01-01T09:00:00 | B11: 9.8 | C11: 26.3 | D11: 3.9 | K11: 0.2641607493 | L11: 0.2436409982 | M11: 8583.176062 | N11: 12787.26824 | O11: https://www.gps-longitude-latitude.net/longitude-latitude-coordonnees-gps-du-lieu
A12: 2024-01-01T10:00:00 | B12: 10.8 | C12: 26.2 | D12: 5.4 | K12: 0.263896787 | L12: 0.2434907053 | M12: 8583.176062 | N12: 12787.26824
A13: 2024-01-01T11:00:00 | B13: 11.2 | C13: 26.1 | D13: 6.5 | K13: 0.2636328246 | L13: 0.2433404124 | M13: 8583.176062 | N13: 12787.26824
A14: 2024-01-01T12:00:00 | B14: 11 | C14: 25.7 | D14: 7.1 | K14: 0.2626073945 | L14: 0.2427518266 | M14: 8583.176062 | N14: 12787.26824
A15: 2024-01-01T13:00:00 | B15: 11.2 | C15: 24.7 | D15: 6.3 | K15: 0.2600980354 | L15: 0.241303288 | M15: 8583.176062 | N15: 12787.26824
A16: 2024-01-01T14:00:00 | B16: 10.8 | C16: 24.2 | D16: 6.2 | K16: 0.2588770337 | L16: 0.2405935296 | M16: 8583.176062 | N16: 12787.26824
A17: 2024-01-01T15:00:00 | B17: 11.7 | C17: 24 | D17: 5.7 | K17: 0.258388633 | L17: 0.2403096262 | M17: 8583.176062 | N17: 12787.26824
A18: 2024-01-01T16:00:00 | B18: 12.1 | C18: 23.8 | D18: 4.4 | K18: 0.2579184512 | L18: 0.2400338926 | M18: 8583.176062 | N18: 12787.26824
A19: 2024-01-01T17:00:00 | B19: 11.9 | C19: 23.6 | D19: 3.3 | K19: 0.2574482694 | L19: 0.239758159 | M19: 8583.176062 | N19: 12787.26824
A20: 2024-01-01T18:00:00 | B20: 12.2 | C20: 23.4 | D20: 2.2 | K20: 0.2569780876 | L20: 0.2394824254 | M20: 8583.176062 | N20: 12787.26824
A21: 2024-01-01T19:00:00 | B21: 12.4 | C21: 23.2 | D21: 2.1 | K21: 0.2565079058 | L21: 0.2392066917 | M21: 8583.176062 | N21: 12787.26824
A22: 2024-01-01T20:00:00 | B22: 12.2 | C22: 23 | D22: 2.2 | K22: 0.2560377241 | L22: 0.2389309581 | M22: 8583.176062 | N22: 12787.26825
A23: 2024-01-01T21:00:00 | B23: 12.6 | C23: 22.9 | D23: 2.4 | K23: 0.2558113152 | L23: 0.2387971306 | M23: 8583.176062 | N23: 12787.26825
A24: 2024-01-01T22:00:00 | B24: 12.7 | C24: 22.7 | D24: 2.2 | K24: 0.2553584975 | L24: 0.2385294754 | M24: 8583.176062 | N24: 12787.26825
A25: 2024-01-01T23:00:00 | B25: 12.7 | C25: 22.6 | D25: 2.4 | K25: 0.2551320886 | L25: 0.2383956478 | M25: 8583.176062 | N25: 12787.26825
A26: 2024-01-02 | B26: 12.7 | C26: 22.5 | D26: 3 | K26: 0.2549056797 | L26: 0.2382618203 | M26: 8583.176062 | N26: 12787.26825
A27: 2024-01-02T01:00:00 | B27: 12.6 | C27: 22.7 | D27: 3 | K27: 0.2553584975 | L27: 0.2385294754 | M27: 8583.176062 | N27: 12787.26825
A28: 2024-01-02T02:00:00 | B28: 12.6 | C28: 22.6 | D28: 4.3 | K28: 0.2551320886 | L28: 0.2383956478 | M28: 8583.176062 | N28: 12787.26825
A29: 2024-01-02T03:00:00 | B29: 12.7 | C29: 22.4 | D29: 5.1 | K29: 0.2546792709 | L29: 0.2381279927 | M29: 8583.176062 | N29: 12787.26825
A30: 2024-01-02T04:00:00 | B30: 12.8 | C30: 23.1 | D30: 5.2 | K30: 0.256272815 | L30: 0.2390688249 | M30: 8583.176062 | N30: 12787.26825
A31: 2024-01-02T05:00:00 | B31: 12.8 | C31: 24.4 | D31: 5 | K31: 0.2593654344 | L31: 0.2408774329 | M31: 8583.176062 | N31: 12787.26824
A32: 2024-01-02T06:00:00 | B32: 12.8 | C32: 24.9 | D32: 4.9 | K32: 0.2605864361 | L32: 0.2415871914 | M32: 8583.176062 | N32: 12787.26824
A33: 2024-01-02T07:00:00 | B33: 13 | C33: 25.5 | D33: 5.2 | K33: 0.2620997494 | L33: 0.2424596313 | M33: 8583.176062 | N33: 12787.26824
A34: 2024-01-02T08:00:00 | B34: 13 | C34: 25.7 | D34: 5.3 | K34: 0.2626073945 | L34: 0.2427518266 | M34: 8583.176062 | N34: 12787.26824
A35: 2024-01-02T09:00:00 | B35: 13 | C35: 25.8 | D35: 5.8 | K35: 0.2628612171 | L35: 0.2428979243 | M35: 8583.176062 | N35: 12787.26824
A36: 2024-01-02T10:00:00 | B36: 13.4 | C36: 25.7 | D36: 6 | K36: 0.2626073945 | L36: 0.2427518266 | M36: 8583.176062 | N36: 12787.26824
A37: 2024-01-02T11:00:00 | B37: 13.5 | C37: 25.5 | D37: 6.5 | K37: 0.2620997494 | L37: 0.2424596313 | M37: 8583.176062 | N37: 12787.26824
A38: 2024-01-02T12:00:00 | B38: 13.1 | C38: 25 | D38: 7.1 | K38: 0.2608306365 | L38: 0.241729143 | M38: 8583.176062 | N38: 12787.26824
A39: 2024-01-02T13:00:00 | B39: 12.4 | C39: 24.4 | D39: 6.7 | K39: 0.2593654344 | L39: 0.2408774329 | M39: 8583.176062 | N39: 12787.26824
A40: 2024-01-02T14:00:00 | B40: 11.7 | C40: 23.5 | D40: 6.9 | K40: 0.2572131785 | L40: 0.2396202922 | M40: 8583.176062 | N40: 12787.26824
A41: 2024-01-02T15:00:00 | B41: 11.3 | C41: 23.1 | D41: 6.9 | K41: 0.256272815 | L41: 0.2390688249 | M41: 8583.176062 | N41: 12787.26825
A42: 2024-01-02T16:00:00 | B42: 11.3 | C42: 22.6 | D42: 7 | K42: 0.2551320886 | L42: 0.2383956478 | M42: 8583.176062 | N42: 12787.26825
A43: 2024-01-02T17:00:00 | B43: 11.6 | C43: 22.1 | D43: 6.9 | K43: 0.2540000443 | L43: 0.23772651 | M43: 8583.176062 | N43: 12787.26825
A44: 2024-01-02T18:00:00 | B44: 11.5 | C44: 21.8 | D44: 7.3 | K44: 0.253337218 | L44: 0.237332839 | M44: 8583.176062 | N44: 12787.26824
A45: 2024-01-02T19:00:00 | B45: 11.7 | C45: 21.6 | D45: 7.8 | K45: 0.2529008005 | L45: 0.2370729957 | M45: 8583.176062 | N45: 12787.26824
A46: 2024-01-02T20:00:00 | B46: 11.4 | C46: 21.2 | D46: 8 | K46: 0.2520279656 | L46: 0.2365533089 | M46: 8583.176062 | N46: 12787.26824
A47: 2024-01-02T21:00:00 | B47: 10.1 | C47: 20.7 | D47: 8.7 | K47: 0.2509584027 | L47: 0.2359151453 | M47: 8583.176062 | N47: 12787.26824
A48: 2024-01-02T22:00:00 | B48: 10.6 | C48: 20 | D48: 8.9 | K48: 0.2494810635 | L48: 0.235032398 | M48: 8583.176062 | N48: 12787.26824
A49: 2024-01-02T23:00:00 | B49: 11.1 | C49: 19.4 | D49: 9.1 | K49: 0.248256912 | L49: 0.2342983965 | M49: 8583.176062 | N49: 12787.26824
A50: 2024-01-03 | B50: 11.2 | C50: 18.9 | D50: 8.9 | K50: 0.2472439318 | L50: 0.2336903749 | M50: 8583.176062 | N50: 12787.26825
A51: 2024-01-03T01:00:00 | B51: 11.4 | C51: 19.2 | D51: 8.4 | K51: 0.2478488615 | L51: 0.2340537293 | M51: 8583.176062 | N51: 12787.26824
A52: 2024-01-03T02:00:00 | B52: 11.6 | C52: 19 | D52: 8.3 | K52: 0.247440811 | L52: 0.2338090622 | M52: 8583.176062 | N52: 12787.26825
A53: 2024-01-03T03:00:00 | B53: 11.6 | C53: 18.7 | D53: 7.9 | K53: 0.2468501733 | L53: 0.2334530003 | M53: 8583.176062 | N53: 12787.26825
A54: 2024-01-03T04:00:00 | B54: 11.5 | C54: 19.5 | D54: 7.4 | K54: 0.2484609373 | L54: 0.2344207301 | M54: 8583.176062 | N54: 12787.26824
A55: 2024-01-03T05:00:00 | B55: 11 | C55: 21.6 | D55: 7.8 | K55: 0.2529008005 | L55: 0.2370729957 | M55: 8583.176062 | N55: 12787.26824
A56: 2024-01-03T06:00:00 | B56: 11.3 | C56: 23.6 | D56: 7.8 | K56: 0.2574482694 | L56: 0.239758159 | M56: 8583.176062 | N56: 12787.26824
A57: 2024-01-03T07:00:00 | B57: 10.1 | C57: 25 | D57: 7.1 | K57: 0.2608306365 | L57: 0.241729143 | M57: 8583.176062 | N57: 12787.26824
A58: 2024-01-03T08:00:00 | B58: 10.3 | C58: 25.2 | D58: 8 | K58: 0.2613382816 | L58: 0.2420213383 | M58: 8583.176062 | N58: 12787.26824
A59: 2024-01-03T09:00:00 | B59: 9.9 | C59: 25.5 | D59: 9.1 | K59: 0.2620997494 | L59: 0.2424596313 | M59: 8583.176062 | N59: 12787.26824
A60: 2024-01-03T10:00:00 | B60: 10.5 | C60: 25.5 | D60: 9.8 | K60: 0.2620997494 | L60: 0.2424596313 | M60: 8583.176062 | N60: 12787.26824
A61: 2024-01-03T11:00:00 | B61: 11.1 | C61: 25.2 | D61: 10.1 | K61: 0.2613382816 | L61: 0.2420213383 | M61: 8583.176062 | N61: 12787.26824
A62: 2024-01-03T12:00:00 | B62: 11.9 | C62: 24.7 | D62: 9.9 | K62: 0.2600980354 | L62: 0.241303288 | M62: 8583.176062 | N62: 12787.26824
A63: 2024-01-03T13:00:00 | B63: 10.9 | C63: 24 | D63: 11.3 | K63: 0.258388633 | L63: 0.2403096262 | M63: 8583.176062 | N63: 12787.26824
A64: 2024-01-03T14:00:00 | B64: 10.6 | C64: 23.4 | D64: 10.4 | K64: 0.2569780876 | L64: 0.2394824254 | M64: 8583.176062 | N64: 12787.26824
A65: 2024-01-03T15:00:00 | B65: 10.4 | C65: 23.1 | D65: 10.3 | K65: 0.256272815 | L65: 0.2390688249 | M65: 8583.176062 | N65: 12787.26825
A66: 2024-01-03T16:00:00 | B66: 10.3 | C66: 22.8 | D66: 10.2 | K66: 0.2555849063 | L66: 0.238663303 | M66: 8583.176062 | N66: 12787.26825
A67: 2024-01-03T17:00:00 | B67: 10.7 | C67: 22.9 | D67: 10.2 | K67: 0.2558113152 | L67: 0.2387971306 | M67: 8583.176062 | N67: 12787.26825
A68: 2024-01-03T18:00:00 | B68: 10.7 | C68: 23.1 | D68: 8.6 | K68: 0.256272815 | L68: 0.2390688249 | M68: 8583.176062 | N68: 12787.26825
A69: 2024-01-03T19:00:00 | B69: 10.6 | C69: 22.7 | D69: 7.8 | K69: 0.2553584975 | L69: 0.2385294754 | M69: 8583.176062 | N69: 12787.26825
A70: 2024-01-03T20:00:00 | B70: 10.3 | C70: 22.5 | D70: 7.5 | K70: 0.2549056797 | L70: 0.2382618203 | M70: 8583.176062 | N70: 12787.26825
A71: 2024-01-03T21:00:00 | B71: 10.2 | C71: 22.3 | D71: 6.9 | K71: 0.254452862 | L71: 0.2379941651 | M71: 8583.176062 | N71: 12787.26825
A72: 2024-01-03T22:00:00 | B72: 10.4 | C72: 22.4 | D72: 6.7 | K72: 0.2546792709 | L72: 0.2381279927 | M72: 8583.176062 | N72: 12787.26825
A73: 2024-01-03T23:00:00 | B73: 10.4 | C73: 22.2 | D73: 6.4 | K73: 0.2542264532 | L73: 0.2378603376 | M73: 8583.176062 | N73: 12787.26825
A74: 2024-01-04 | B74: 10.3 | C74: 21.1 | D74: 6.2 | K74: 0.2518097568 | L74: 0.2364233872 | M74: 8583.176062 | N74: 12787.26824
A75: 2024-01-04T01:00:00 | B75: 10.3 | C75: 22.5 | D75: 6.4 | K75: 0.2549056797 | L75: 0.2382618203 | M75: 8583.176062 | N75: 12787.26825
A76: 2024-01-04T02:00:00 | B76: 10.2 | C76: 22.3 | D76: 6.4 | K76: 0.254452862 | L76: 0.2379941651 | M76: 8583.176062 | N76: 12787.26825
A77: 2024-01-04T03:00:00 | B77: 10.1 | C77: 22.4 | D77: 5.9 | K77: 0.2546792709 | L77: 0.2381279927 | M77: 8583.176062 | N77: 12787.26825
A78: 2024-01-04T04:00:00 | B78: 10.4 | C78: 22.7 | D78: 5.7 | K78: 0.2553584975 | L78: 0.2385294754 | M78: 8583.176062 | N78: 12787.26825
A79: 2024-01-04T05:00:00 | B79: 9.8 | C79: 23.5 | D79: 5.8 | K79: 0.2572131785 | L79: 0.2396202922 | M79: 8583.176062 | N79: 12787.26824
A80: 2024-01-04T06:00:00 | B80: 9.7 | C80: 23.9 | D80: 5.7 | K80: 0.2581535421 | L80: 0.2401717594 | M80: 8583.176062 | N80: 12787.26824
A81: 2024-01-04T07:00:00 | B81: 10.3 | C81: 24.4 | D81: 5.3 | K81: 0.2593654344 | L81: 0.2408774329 | M81: 8583.176062 | N81: 12787.26824
A82: 2024-01-04T08:00:00 | B82: 10.3 | C82: 24.5 | D82: 5.7 | K82: 0.2596096347 | L82: 0.2410193846 | M82: 8583.176062 | N82: 12787.26824
A83: 2024-01-04T09:00:00 | B83: 10.6 | C83: 24.5 | D83: 5.9 | K83: 0.2596096347 | L83: 0.2410193846 | M83: 8583.176062 | N83: 12787.26824
A84: 2024-01-04T10:00:00 | B84: 11.2 | C84: 24.4 | D84: 6.5 | K84: 0.2593654344 | L84: 0.2408774329 | M84: 8583.176062 | N84: 12787.26824
A85: 2024-01-04T11:00:00 | B85: 11.2 | C85: 24.2 | D85: 7.4 | K85: 0.2588770337 | L85: 0.2405935296 | M85: 8583.176062 | N85: 12787.26824
A86: 2024-01-04T12:00:00 | B86: 10.8 | C86: 23.9 | D86: 7.9 | K86: 0.2581535421 | L86: 0.2401717594 | M86: 8583.176062 | N86: 12787.26824
A87: 2024-01-04T13:00:00 | B87: 11 | C87: 23.1 | D87: 8.3 | K87: 0.256272815 | L87: 0.2390688249 | M87: 8583.176062 | N87: 12787.26825
A88: 2024-01-04T14:00:00 | B88: 10.3 | C88: 22.6 | D88: 8.2 | K88: 0.2551320886 | L88: 0.2383956478 | M88: 8583.176062 | N88: 12787.26825
A89: 2024-01-04T15:00:00 | B89: 9.9 | C89: 22.8 | D89: 7.8 | K89: 0.2555849063 | L89: 0.238663303 | M89: 8583.176062 | N89: 12787.26825
A90: 2024-01-04T16:00:00 | B90: 8.3 | C90: 22.4 | D90: 5.9 | K90: 0.2546792709 | L90: 0.2381279927 | M90: 8583.176062 | N90: 12787.26825
A91: 2024-01-04T17:00:00 | B91: 8.3 | C91: 21.8 | D91: 4.5 | K91: 0.253337218 | L91: 0.237332839 | M91: 8583.176062 | N91: 12787.26824
A92: 2024-01-04T18:00:00 | B92: 8.2 | C92: 21.6 | D92: 4 | K92: 0.2529008005 | L92: 0.2370729957 | M92: 8583.176062 | N92: 12787.26824
A93: 2024-01-04T19:00:00 | B93: 8.1 | C93: 21.4 | D93: 4.3 | K93: 0.252464383 | L93: 0.2368131523 | M93: 8583.176062 | N93: 12787.26824
A94: 2024-01-04T20:00:00 | B94: 7.7 | C94: 21.2 | D94: 3.7 | K94: 0.2520279656 | L94: 0.2365533089 | M94: 8583.176062 | N94: 12787.26824
A95: 2024-01-04T21:00:00 | B95: 7.6 | C95: 21 | D95: 3.4 | K95: 0.2515915481 | L95: 0.2362934655 | M95: 8583.176062 | N95: 12787.26824
A96: 2024-01-04T22:00:00 | B96: 7.5 | C96: 21 | D96: 1.9 | K96: 0.2515915481 | L96: 0.2362934655 | M96: 8583.176062 | N96: 12787.26824
A97: 2024-01-04T23:00:00 | B97: 7.4 | C97: 21 | D97: 2 | K97: 0.2515915481 | L97: 0.2362934655 | M97: 8583.176062 | N97: 12787.26824
A98: 2024-01-05 | B98: 7.1 | C98: 20.7 | D98: 1.6 | K98: 0.2509584027 | L98: 0.2359151453 | M98: 8583.176062 | N98: 12787.26824
A99: 2024-01-05T01:00:00 | B99: 7.3 | C99: 19.4 | D99: 2 | K99: 0.248256912 | L99: 0.2342983965 | M99: 8583.176062 | N99: 12787.26824
A100: 2024-01-05T02:00:00 | B100: 6.8 | C100: 18.9 | D100: 2.2 | K100: 0.2472439318 | L100: 0.2336903749 | M100: 8583.176062 | N100: 12787.26825
A101: 2024-01-05T03:00:00 | B101: 6.5 | C101: 18.4 | D101: 2.4 | K101: 0.2462595356 | L101: 0.2330969385 | M101: 8583.176062 | N101: 12787.26825
A102: 2024-01-05T04:00:00 | B102: 6.6 | C102: 18.6 | D102: 2.5 | K102: 0.2466532941 | L102: 0.233334313 | M102: 8583.176062 | N102: 12787.26825
A103: 2024-01-05T05:00:00 | B103: 6.5 | C103: 20.2 | D103: 2.7 | K103: 0.2499031604 | L103: 0.2352846115 | M103: 8583.176062 | N103: 12787.26824
A104: 2024-01-05T06:00:00 | B104: 5.9 | C104: 22.4 | D104: 3.2 | K104: 0.2546792709 | L104: 0.2381279927 | M104: 8583.176062 | N104: 12787.26825
A105: 2024-01-05T07:00:00 | B105: 6.4 | C105: 23.8 | D105: 3.6 | K105: 0.2579184512 | L105: 0.2400338926 | M105: 8583.176062 | N105: 12787.26824
A106: 2024-01-05T08:00:00 | B106: 6.7 | C106: 24.4 | D106: 3.6 | K106: 0.2593654344 | L106: 0.2408774329 | M106: 8583.176062 | N106: 12787.26824
A107: 2024-01-05T09:00:00 | B107: 7 | C107: 24.9 | D107: 4.1 | K107: 0.2605864361 | L107: 0.2415871914 | M107: 8583.176062 | N107: 12787.26824
A108: 2024-01-05T10:00:00 | B108: 8.4 | C108: 24.9 | D108: 4.8 | K108: 0.2605864361 | L108: 0.2415871914 | M108: 8583.176062 | N108: 12787.26824
A109: 2024-01-05T11:00:00 | B109: 8.3 | C109: 24.8 | D109: 5.5 | K109: 0.2603422358 | L109: 0.2414452397 | M109: 8583.176062 | N109: 12787.26824
A110: 2024-01-05T12:00:00 | B110: 9.1 | C110: 24.3 | D110: 6.1 | K110: 0.259121234 | L110: 0.2407354813 | M110: 8583.176062 | N110: 12787.26824
A111: 2024-01-05T13:00:00 | B111: 8.7 | C111: 23.8 | D111: 5.3 | K111: 0.2579184512 | L111: 0.2400338926 | M111: 8583.176062 | N111: 12787.26824
A112: 2024-01-05T14:00:00 | B112: 8.1 | C112: 23.3 | D112: 5.4 | K112: 0.2567429967 | L112: 0.2393445586 | M112: 8583.176062 | N112: 12787.26824
A113: 2024-01-05T15:00:00 | B113: 8.1 | C113: 23 | D113: 5 | K113: 0.2560377241 | L113: 0.2389309581 | M113: 8583.176062 | N113: 12787.26825
A114: 2024-01-05T16:00:00 | B114: 7.5 | C114: 22.6 | D114: 4.4 | K114: 0.2551320886 | L114: 0.2383956478 | M114: 8583.176062 | N114: 12787.26825
A115: 2024-01-05T17:00:00 | B115: 7.4 | C115: 22.2 | D115: 3.8 | K115: 0.2542264532 | L115: 0.2378603376 | M115: 8583.176062 | N115: 12787.26825
A116: 2024-01-05T18:00:00 | B116: 6.5 | C116: 21.5 | D116: 4 | K116: 0.2526825918 | L116: 0.236943074 | M116: 8583.176062 | N116: 12787.26824
A117: 2024-01-05T19:00:00 | B117: 6.8 | C117: 20.6 | D117: 3.8 | K117: 0.2507473543 | L117: 0.2357890385 | M117: 8583.176062 | N117: 12787.26824
A118: 2024-01-05T20:00:00 | B118: 6.6 | C118: 19.7 | D118: 3.9 | K118: 0.2488689878 | L118: 0.2346653972 | M118: 8583.176062 | N118: 12787.26824
A119: 2024-01-05T21:00:00 | B119: 7.1 | C119: 19.5 | D119: 4 | K119: 0.2484609373 | L119: 0.2344207301 | M119: 8583.176062 | N119: 12787.26824
A120: 2024-01-05T22:00:00 | B120: 6.8 | C120: 18.5 | D120: 4 | K120: 0.2464564148 | L120: 0.2332156258 | M120: 8583.176062 | N120: 12787.26825
A121: 2024-01-05T23:00:00 | B121: 6.8 | C121: 17.9 | D121: 4.1 | K121: 0.2452819295 | L121: 0.2325070439 | M121: 8583.176062 | N121: 12787.26825
A122: 2024-01-06 | B122: 6.6 | C122: 17.3 | D122: 4.1 | K122: 0.2441413943 | L122: 0.2318161712 | M122: 8583.176062 | N122: 12787.26824
A123: 2024-01-06T01:00:00 | B123: 6.3 | C123: 17.8 | D123: 4.6 | K123: 0.2450918403 | L123: 0.2323918984 | M123: 8583.176062 | N123: 12787.26824
A124: 2024-01-06T02:00:00 | B124: 6.3 | C124: 17.6 | D124: 4.5 | K124: 0.2447116619 | L124: 0.2321616075 | M124: 8583.176062 | N124: 12787.26824
A125: 2024-01-06T03:00:00 | B125: 6.5 | C125: 17.3 | D125: 4 | K125: 0.2441413943 | L125: 0.2318161712 | M125: 8583.176062 | N125: 12787.26824
A126: 2024-01-06T04:00:00 | B126: 6 | C126: 18 | D126: 3.5 | K126: 0.2454720187 | L126: 0.2326221893 | M126: 8583.176062 | N126: 12787.26825
A127: 2024-01-06T05:00:00 | B127: 6.4 | C127: 20.3 | D127: 3.2 | K127: 0.2501142089 | L127: 0.2354107182 | M127: 8583.176062 | N127: 12787.26824
A128: 2024-01-06T06:00:00 | B128: 6.3 | C128: 22.6 | D128: 3 | K128: 0.2551320886 | L128: 0.2383956478 | M128: 8583.176062 | N128: 12787.26825
A129: 2024-01-06T07:00:00 | B129: 6.1 | C129: 24.1 | D129: 2.9 | K129: 0.2586328333 | L129: 0.2404515779 | M129: 8583.176062 | N129: 12787.26824
A130: 2024-01-06T08:00:00 | B130: 5.7 | C130: 24.6 | D130: 2.9 | K130: 0.2598538351 | L130: 0.2411613363 | M130: 8583.176062 | N130: 12787.26824
A131: 2024-01-06T09:00:00 | B131: 6.1 | C131: 24.7 | D131: 3.2 | K131: 0.2600980354 | L131: 0.241303288 | M131: 8583.176062 | N131: 12787.26824
A132: 2024-01-06T10:00:00 | B132: 7.1 | C132: 24.7 | D132: 3.8 | K132: 0.2600980354 | L132: 0.241303288 | M132: 8583.176062 | N132: 12787.26824
A133: 2024-01-06T11:00:00 | B133: 7.6 | C133: 24.5 | D133: 4.4 | K133: 0.2596096347 | L133: 0.2410193846 | M133: 8583.176062 | N133: 12787.26824
A134: 2024-01-06T12:00:00 | B134: 8.3 | C134: 24.1 | D134: 4.4 | K134: 0.2586328333 | L134: 0.2404515779 | M134: 8583.176062 | N134: 12787.26824
A135: 2024-01-06T13:00:00 | B135: 8.3 | C135: 23.6 | D135: 5.1 | K135: 0.2574482694 | L135: 0.239758159 | M135: 8583.176062 | N135: 12787.26824
A136: 2024-01-06T14:00:00 | B136: 8.5 | C136: 22.8 | D136: 4.7 | K136: 0.2555849063 | L136: 0.238663303 | M136: 8583.176062 | N136: 12787.26825
A137: 2024-01-06T15:00:00 | B137: 8.4 | C137: 22.3 | D137: 4.1 | K137: 0.254452862 | L137: 0.2379941651 | M137: 8583.176062 | N137: 12787.26825
A138: 2024-01-06T16:00:00 | B138: 7.6 | C138: 21.9 | D138: 2.2 | K138: 0.2535554267 | L138: 0.2374627607 | M138: 8583.176062 | N138: 12787.26824
A139: 2024-01-06T17:00:00 | B139: 6.6 | C139: 21.6 | D139: 2.6 | K139: 0.2529008005 | L139: 0.2370729957 | M139: 8583.176062 | N139: 12787.26824
A140: 2024-01-06T18:00:00 | B140: 6.4 | C140: 21.2 | D140: 2.1 | K140: 0.2520279656 | L140: 0.2365533089 | M140: 8583.176062 | N140: 12787.26824
A141: 2024-01-06T19:00:00 | B141: 6.3 | C141: 20.8 | D141: 2 | K141: 0.2511694512 | L141: 0.236041252 | M141: 8583.176062 | N141: 12787.26824
A142: 2024-01-06T20:00:00 | B142: 6.3 | C142: 20.5 | D142: 2.4 | K142: 0.2505363058 | L142: 0.2356629318 | M142: 8583.176062 | N142: 12787.26824
A143: 2024-01-06T21:00:00 | B143: 6.1 | C143: 19.9 | D143: 2.1 | K143: 0.2492770383 | L143: 0.2349100644 | M143: 8583.176062 | N143: 12787.26824
A144: 2024-01-06T22:00:00 | B144: 6 | C144: 19.4 | D144: 2.4 | K144: 0.248256912 | L144: 0.2342983965 | M144: 8583.176062 | N144: 12787.26824
A145: 2024-01-06T23:00:00 | B145: 5.6 | C145: 18.9 | D145: 2.3 | K145: 0.2472439318 | L145: 0.2336903749 | M145: 8583.176062 | N145: 12787.26825
A146: 2024-01-07 | B146: 5.6 | C146: 18.5 | D146: 2.3 | K146: 0.2464564148 | L146: 0.2332156258 | M146: 8583.176062 | N146: 12787.26825
A147: 2024-01-07T01:00:00 | B147: 5.7 | C147: 18.3 | D147: 1.9 | K147: 0.2460626564 | L147: 0.2329782512 | M147: 8583.176062 | N147: 12787.26825
A148: 2024-01-07T02:00:00 | B148: 5.5 | C148: 17.8 | D148: 1.9 | K148: 0.2450918403 | L148: 0.2323918984 | M148: 8583.176062 | N148: 12787.26824
A149: 2024-01-07T03:00:00 | B149: 5.1 | C149: 17 | D149: 1.8 | K149: 0.2435711267 | L149: 0.2314707348 | M149: 8583.176062 | N149: 12787.26824
A150: 2024-01-07T04:00:00 | B150: 5.4 | C150: 17.4 | D150: 1.7 | K150: 0.2443314835 | L150: 0.2319313166 | M150: 8583.176062 | N150: 12787.26824
A151: 2024-01-07T05:00:00 | B151: 5.2 | C151: 19.4 | D151: 1.7 | K151: 0.248256912 | L151: 0.2342983965 | M151: 8583.176062 | N151: 12787.26824
A152: 2024-01-07T06:00:00 | B152: 4.5 | C152: 21.9 | D152: 1.7 | K152: 0.2535554267 | L152: 0.2374627607 | M152: 8583.176062 | N152: 12787.26824
A153: 2024-01-07T07:00:00 | B153: 4.5 | C153: 23.2 | D153: 1.7 | K153: 0.2565079058 | L153: 0.2392066917 | M153: 8583.176062 | N153: 12787.26824
A154: 2024-01-07T08:00:00 | B154: 4.5 | C154: 23.8 | D154: 1.8 | K154: 0.2579184512 | L154: 0.2400338926 | M154: 8583.176062 | N154: 12787.26824
A155: 2024-01-07T09:00:00 | B155: 4.9 | C155: 24.1 | D155: 1.9 | K155: 0.2586328333 | L155: 0.2404515779 | M155: 8583.176062 | N155: 12787.26824
A156: 2024-01-07T10:00:00 | B156: 6.4 | C156: 24.2 | D156: 2.1 | K156: 0.2588770337 | L156: 0.2405935296 | M156: 8583.176062 | N156: 12787.26824
A157: 2024-01-07T11:00:00 | B157: 7.8 | C157: 24 | D157: 2.2 | K157: 0.258388633 | L157: 0.2403096262 | M157: 8583.176062 | N157: 12787.26824
A158: 2024-01-07T12:00:00 | B158: 8.3 | C158: 23.7 | D158: 2.7 | K158: 0.2576833603 | L158: 0.2398960258 | M158: 8583.176062 | N158: 12787.26824
A159: 2024-01-07T13:00:00 | B159: 8.1 | C159: 22.9 | D159: 3.1 | K159: 0.2558113152 | L159: 0.2387971306 | M159: 8583.176062 | N159: 12787.26825
A160: 2024-01-07T14:00:00 | B160: 7.8 | C160: 22.3 | D160: 2.5 | K160: 0.254452862 | L160: 0.2379941651 | M160: 8583.176062 | N160: 12787.26825
A161: 2024-01-07T15:00:00 | B161: 7.3 | C161: 21.5 | D161: 2.2 | K161: 0.2526825918 | L161: 0.236943074 | M161: 8583.176062 | N161: 12787.26824
A162: 2024-01-07T16:00:00 | B162: 6.5 | C162: 21.3 | D162: 1.8 | K162: 0.2522461743 | L162: 0.2366832306 | M162: 8583.176062 | N162: 12787.26824
A163: 2024-01-07T17:00:00 | B163: 5.4 | C163: 21.7 | D163: 1.6 | K163: 0.2531190092 | L163: 0.2372029173 | M163: 8583.176062 | N163: 12787.26824
A164: 2024-01-07T18:00:00 | B164: 5 | C164: 21.5 | D164: 1 | K164: 0.2526825918 | L164: 0.236943074 | M164: 8583.176062 | N164: 12787.26824
A165: 2024-01-07T19:00:00 | B165: 5 | C165: 18.9 | D165: 0.4 | K165: 0.2472439318 | L165: 0.2336903749 | M165: 8583.176062 | N165: 12787.26825
A166: 2024-01-07T20:00:00 | B166: 5.1 | C166: 18.2 | D166: 0.1 | K166: 0.2458657771 | L166: 0.2328595639 | M166: 8583.176062 | N166: 12787.26825
A167: 2024-01-07T21:00:00 | B167: 4.9 | C167: 17.2 | D167: -0.1 | K167: 0.2439513051 | L167: 0.2317010257 | M167: 8583.176062 | N167: 12787.26824
A168: 2024-01-07T22:00:00 | B168: 4.6 | C168: 16.4 | D168: -0.3 | K168: 0.2424940936 | L168: 0.23080047 | M168: 8583.176062 | N168: 12787.26824
A169: 2024-01-07T23:00:00 | B169: 4 | C169: 15.9 | D169: -0.5 | K169: 0.2415944448 | L169: 0.2302452434 | M169: 8583.176062 | N169: 12787.26824
A170: 2024-01-08 | B170: 3.9 | C170: 15.8 | D170: -0.8 | K170: 0.241412818 | L170: 0.2301368599 | M170: 8583.176062 | N170: 12787.26824
A171: 2024-01-08T01:00:00 | B171: 3.8 | C171: 15.8 | D171: -1 | K171: 0.241412818 | L171: 0.2301368599 | M171: 8583.176062 | N171: 12787.26824
A172: 2024-01-08T02:00:00 | B172: 3.2 | C172: 14.9 | D172: -1.5 | K172: 0.2397881309 | L172: 0.2291637684 | M172: 8583.176062 | N172: 12787.26824
A173: 2024-01-08T03:00:00 | B173: 3 | C173: 14.2 | D173: -2 | K173: 0.2385864175 | L173: 0.228421603 | M173: 8583.176062 | N173: 12787.26825
A174: 2024-01-08T04:00:00 | B174: 2.8 | C174: 16 | D174: -2.3 | K174: 0.2417760715 | L174: 0.2303536269 | M174: 8583.176062 | N174: 12787.26824
A175: 2024-01-08T05:00:00 | B175: 2.8 | C175: 18.8 | D175: -2.4 | K175: 0.2470470525 | L175: 0.2335716876 | M175: 8583.176062 | N175: 12787.26825
A176: 2024-01-08T06:00:00 | B176: 3 | C176: 21.8 | D176: -2.5 | K176: 0.253337218 | L176: 0.237332839 | M176: 8583.176062 | N176: 12787.26824
A177: 2024-01-08T07:00:00 | B177: 3.1 | C177: 24.2 | D177: -2.7 | K177: 0.2588770337 | L177: 0.2405935296 | M177: 8583.176062 | N177: 12787.26824
A178: 2024-01-08T08:00:00 | B178: 2.7 | C178: 25.9 | D178: -3.1 | K178: 0.2631150397 | L178: 0.2430440219 | M178: 8583.176062 | N178: 12787.26824
A179: 2024-01-08T09:00:00 | B179: 1.9 | C179: 27.1 | D179: -3.1 | K179: 0.2662831958 | L179: 0.2448475952 | M179: 8583.176062 | N179: 12787.26824
A180: 2024-01-08T10:00:00 | B180: 1.9 | C180: 27.4 | D180: -2.7 | K180: 0.267107326 | L180: 0.2453112358 | M180: 8583.176062 | N180: 12787.26824
A181: 2024-01-08T11:00:00 | B181: 2.6 | C181: 26.7 | D181: -2.5 | K181: 0.2652165987 | L181: 0.2442421697 | M181: 8583.176062 | N181: 12787.26824
A182: 2024-01-08T12:00:00 | B182: 3.7 | C182: 26.2 | D182: -2.1 | K182: 0.263896787 | L182: 0.2434907053 | M182: 8583.176062 | N182: 12787.26824
A183: 2024-01-08T13:00:00 | B183: 5.1 | C183: 24.8 | D183: -2.5 | K183: 0.2603422358 | L183: 0.2414452397 | M183: 8583.176062 | N183: 12787.26824
A184: 2024-01-08T14:00:00 | B184: 5 | C184: 23.8 | D184: -2.4 | K184: 0.2579184512 | L184: 0.2400338926 | M184: 8583.176062 | N184: 12787.26824
A185: 2024-01-08T15:00:00 | B185: 4.9 | C185: 23.3 | D185: -2.3 | K185: 0.2567429967 | L185: 0.2393445586 | M185: 8583.176062 | N185: 12787.26824
A186: 2024-01-08T16:00:00 | B186: 4.6 | C186: 22.5 | D186: -2.3 | K186: 0.2549056797 | L186: 0.2382618203 | M186: 8583.176062 | N186: 12787.26825
A187: 2024-01-08T17:00:00 | B187: 4.2 | C187: 21.5 | D187: -2.2 | K187: 0.2526825918 | L187: 0.236943074 | M187: 8583.176062 | N187: 12787.26824
A188: 2024-01-08T18:00:00 | B188: 3.6 | C188: 20.4 | D188: -2.2 | K188: 0.2503252573 | L188: 0.235536825 | M188: 8583.176062 | N188: 12787.26824
A189: 2024-01-08T19:00:00 | B189: 2.7 | C189: 19.3 | D189: -2.3 | K189: 0.2480528867 | L189: 0.2341760629 | M189: 8583.176062 | N189: 12787.26824
A190: 2024-01-08T20:00:00 | B190: 1.5 | C190: 18.1 | D190: -2.4 | K190: 0.2456688979 | L190: 0.2327408766 | M190: 8583.176062 | N190: 12787.26825
A191: 2024-01-08T21:00:00 | B191: 0.4 | C191: 17 | D191: -2.3 | K191: 0.2435711267 | L191: 0.2314707348 | M191: 8583.176062 | N191: 12787.26824
A192: 2024-01-08T22:00:00 | B192: -0.6 | C192: 16.4 | D192: -2.1 | K192: 0.2424940936 | L192: 0.23080047 | M192: 8583.176062 | N192: 12787.26824
A193: 2024-01-08T23:00:00 | B193: -1.3 | C193: 15.4 | D193: -2.1 | K193: 0.2406863111 | L193: 0.229703326 | M193: 8583.176062 | N193: 12787.26824
A194: 2024-01-09 | B194: -1.5 | C194: 14.6 | D194: -2.3 | K194: 0.2392731108 | L194: 0.2288456975 | M194: 8583.176062 | N194: 12787.26824
A195: 2024-01-09T01:00:00 | B195: -2 | C195: 14.1 | D195: -2 | K195: 0.2384147442 | L195: 0.2283155793 | M195: 8583.176062 | N195: 12787.26825
A196: 2024-01-09T02:00:00 | B196: -2.2 | C196: 13.8 | D196: -2.4 | K196: 0.2379108646 | L196: 0.2280033621 | M196: 8583.176062 | N196: 12787.26825
A197: 2024-01-09T03:00:00 | B197: -2.6 | C197: 13.6 | D197: -2.8 | K197: 0.2375786584 | L197: 0.2277971685 | M197: 8583.176062 | N197: 12787.26825
A198: 2024-01-09T04:00:00 | B198: -2.9 | C198: 14.2 | D198: -3.1 | K198: 0.2385864175 | L198: 0.228421603 | M198: 8583.176062 | N198: 12787.26825
A199: 2024-01-09T05:00:00 | B199: -3.2 | C199: 17.2 | D199: -3.2 | K199: 0.2439513051 | L199: 0.2317010257 | M199: 8583.176062 | N199: 12787.26824
A200: 2024-01-09T06:00:00 | B200: -3.2 | C200: 21.1 | D200: -3.3 | K200: 0.2518097568 | L200: 0.2364233872 | M200: 8583.176062 | N200: 12787.26824
... 4300 more rows

Sheet Chiller performances
C2: Name of chiller | D2: a | E2: b | F2: c | G2: d | I2: The EER is calculated with following formula: the coefficient and temperature must be in K If the coefficients are in °C, its can be converted on the right
B3: EER4 | C3: RPS - Propane | E3: 0 | F3: -0.07214 | G3: 24.9615
C4: BITZER - Propane | E4: 0.000700403 | F4: -0.5117464324 | G4: 93.88367375
C5: DORIN - Propane | E5: 0.001611543 | F5: -1.055630204 | G5: 174.8289653
C6: FRASCOLD - Propane | F6: -0.0609285714 | G6: 21.50978214
C7: RPS 2 - Propane | F7: -0.0588 | G7: 20.2081
I9: Coefficient converting
B10: EER30 | C10: RPS - Propane | E10: 0 | F10: -0.0292 | G10: 10.20498 | J10: a | K10: b | L10: c | M10: d
C11: BITZER - Propane | E11: 0.0003865113 | F11: -0.2631421827 | G11: 45.13959444 | I11: coefficients in °C | J11: 0 | K11: 0 | L11: -0.07214285714 | M11: 5.255714286
C12: DORIN - Propane | E12: 0.0002066553 | F12: -0.1588274972 | G12: 30.28840437 | I12: coefficients in K | J12: =J11 -> 0 | K12: =K11-3*273.15*J11 -> 0 | L12: =L11-2*273.15*K11+3*273.15^2*J11 -> -0.07214285714 | M12: =M11-273.15*L11+K11*273.15^2-273.15^3*J11 -> 24.96153571
C13: FRASCOLD - Propane | D13: 1.2862e-05 | E13: -0.0117032193 | F13: 3.517219949 | G13: -347.7748761
C14: RPS 2 - Propane | F14: -0.0421 | G14: 14.097
